fUST/lending_fUST_20250822
["ID","MTS","AMOUNT","RATE_DAILY","PERIOD"]
[380519115,1755799853060,-1523.71,0.00021218,2]
[380519116,1755799853071,-527.09,0.00021218,2]
[380519117,1755799853086,-480.0,0.00021218,2]
[380519118,1755799853102,-527.55,0.00021218,2]
[380519119,1755799853118,-688.66,0.00021218,2]
[380519120,1755799853128,-896.47,0.00021218,2]
[380519121,1755799853137,-1000.0,0.00021221,2]
[380519122,1755799853146,-1021.94377014,0.00021221,2]
[380519123,1755799853156,-1000.0,0.00021221,2]
[380519124,1755799853166,-1000.0,0.00021221,2]
[380519125,1755799853175,-1000.0,0.00021221,2]
[380519126,1755799853185,-1000.0,0.00021221,2]
[380519127,1755799853194,-1000.0,0.00021221,2]
[380519128,1755799853203,-1000.0,0.00021221,2]
[380519129,1755799853212,-1000.0,0.00021221,2]
[380519130,1755799853222,-1000.0,0.00021221,2]
[380519131,1755799853232,-188.34441399,0.00021221,2]
[380519132,1755799853241,-480.0,0.00021228,2]
[380519133,1755799853251,-480.0,0.00021228,2]
[380519134,1755799853260,-480.0,0.00021228,2]
[380519135,1755799853271,-480.0,0.00021228,2]
[380519136,1755799853280,-607.32,0.00021228,2]
[380519137,1755799853289,-1036.55,0.00021228,2]
[380519138,1755799853299,-592.84,0.00021228,2]
[380519139,1755799853308,-480.0,0.00021228,2]
[380519140,1755799853317,-1808.6,0.00021228,2]
[380519141,1755799853327,-480.0,0.00021228,2]
[380519142,1755799853336,-694.37,0.00021228,2]
[380519143,1755799853345,-1030.35,0.00021228,2]
[380519144,1755799853356,-480.0,0.00021228,2]
[380519145,1755799853365,-480.0,0.00021228,2]
[380519146,1755799853374,-548.87,0.00021228,2]
[380519147,1755799853384,-785.19,0.00021228,2]
[380519148,1755799853394,-151.0,0.00021228,2]
[380519149,1755799853407,-151.0,0.00021228,2]
[380519150,1755799853416,-151.0,0.00021228,2]
[380519151,1755799853428,-595.06,0.00021228,2]
[380519152,1755799853437,-612.02908883,0.00021228,2]
[380519153,1755799853447,-480.0,0.00021228,2]
[380519154,1755799853455,-151.0,0.00021228,2]
[380519155,1755799853464,-151.0,0.00021228,2]
[380519156,1755799853474,-151.0,0.00021228,2]
[380519157,1755799853483,-480.0,0.00021228,2]
[380519158,1755799853492,-151.0,0.00021228,2]
[380519159,1755799853501,-151.0,0.00021228,2]
[380519160,1755799853510,-151.0,0.00021228,2]
[380519161,1755799853519,-151.0,0.00021228,2]
[380519162,1755799853527,-480.0,0.00021228,2]
[380519163,1755799853536,-480.0,0.00021228,2]
[380519164,1755799853545,-531.25,0.00021228,2]
[380519165,1755799853554,-480.0,0.00021228,2]
[380519166,1755799853562,-834.13,0.00021228,2]
[380519167,1755799853571,-480.0,0.00021228,2]
[380519168,1755799853580,-553.95,0.00021228,2]
[380519169,1755799853589,-480.0,0.00021228,2]
[380519170,1755799853598,-151.0,0.00021228,2]
[380519171,1755799853607,-151.0,0.00021228,2]
[380519172,1755799853616,-295.792276,0.00021228,2]
[380519173,1755799853625,-151.0,0.00021228,2]
[380519174,1755799853634,-1963.81,0.00021229,2]
[380519175,1755799853643,-1091.59,0.00021229,2]
[380519176,1755799853652,-480.0,0.00021229,2]
[380519177,1755799853661,-480.0,0.00021229,2]
[380519178,1755799853670,-6417.89,0.00021229,2]
[380519179,1755799853679,-718.87,0.00021229,2]
[380519180,1755799853688,-1231.56,0.00021229,2]
[380519181,1755799853697,-6003.79,0.00021229,2]
[380519182,1755799853705,-168.0,0.00021276,2]
[380519183,1755799853714,-715.06071629,0.0002128,2]
[380519184,1755799853723,-168.0,0.00021298,2]
[380519185,1755799853732,-500.0,0.0002131,2]
[380519186,1755799853742,-500.0,0.0002131,2]
[380519187,1755799853751,-500.0,0.0002131,2]
[380519188,1755799853761,-480.0,0.00021328,2]
[380519189,1755799853771,-480.0,0.00021328,2]
[380519190,1755799853780,-480.0,0.00021328,2]
[380519191,1755799853790,-920.74,0.00021328,2]
[380519192,1755799853799,-963.04,0.00021328,2]
[380519193,1755799853808,-480.0,0.00021328,2]
[380519194,1755799853818,-480.0,0.00021328,2]
[380519195,1755799853827,-480.0,0.00021328,2]
[380519196,1755799853838,-480.0,0.00021328,2]
[380519197,1755799853848,-559.19,0.00021328,2]
[380519198,1755799853859,-151.0,0.00021328,2]
[380519199,1755799853869,-480.0,0.00021328,2]
[380519200,1755799853879,-151.0,0.00021328,2]
[380519201,1755799853889,-992.45,0.00021328,2]
[380519202,1755799853899,-480.0,0.00021328,2]
[380519203,1755799853909,-480.0,0.00021328,2]
[380519204,1755799853919,-524.86,0.00021328,2]
[380519205,1755799853930,-151.0,0.00021328,2]
[380519206,1755799853947,-151.0,0.00021328,2]
[380519207,1755799853957,-151.0,0.00021328,2]
[380519208,1755799853966,-243.734086,0.00021328,2]
[380519209,1755799853975,-243.734086,0.00021328,2]
[380519210,1755799853985,-243.734086,0.00021328,2]
[380519211,1755799853994,-243.734086,0.00021328,2]
[380519212,1755799854003,-497.6,0.00021328,2]
[380519213,1755799854012,-480.0,0.00021328,2]
[380519214,1755799854021,-625.39,0.00021328,2]
[380519215,1755799854030,-151.0,0.00021329,2]
[380519216,1755799854039,-151.0,0.00021329,2]
[380519217,1755799854049,-151.0,0.00021329,2]
[380519218,1755799854059,-151.0,0.00021329,2]
[380519219,1755799854068,-151.0,0.00021329,2]
[380519220,1755799854078,-151.0,0.00021329,2]
[380519221,1755799854087,-151.0,0.00021329,2]
[380519222,1755799854096,-151.0,0.00021329,2]
[380519223,1755799854106,-151.0,0.00021329,2]
[380519224,1755799854116,-151.88639,0.00021329,2]
[380519225,1755799854125,-151.0,0.00021329,2]
[380519226,1755799854135,-495.48,0.0002133,2]
[380519227,1755799854145,-480.0,0.0002133,2]
[380519228,1755799854154,-480.0,0.0002133,2]
[380519229,1755799854163,-480.0,0.0002133,2]
[380519230,1755799854172,-615.13,0.0002133,2]
[380519231,1755799854182,-480.0,0.0002133,2]
[380519232,1755799854192,-480.0,0.0002133,2]
[380519233,1755799854201,-480.0,0.0002133,2]
[380519234,1755799854211,-480.0,0.0002133,2]
[380519235,1755799854220,-497.26,0.0002133,2]
[380519236,1755799854229,-480.0,0.0002133,2]
[380519237,1755799854238,-168.0,0.00021337,2]
[380519238,1755799854248,-480.0,0.00021339,2]
[380519239,1755799854257,-480.0,0.00021339,2]
[380519240,1755799854268,-480.0,0.00021339,2]
[380519241,1755799854277,-480.0,0.00021339,2]
[380519242,1755799854287,-480.0,0.00021339,2]
[380519243,1755799854297,-480.0,0.00021339,2]
[380519244,1755799854306,-1042.81,0.00021339,2]
[380519245,1755799854315,-480.0,0.00021339,2]
[380519246,1755799854324,-480.0,0.00021339,2]
[380519247,1755799854334,-480.0,0.00021339,2]
[380519248,1755799854343,-499.87,0.00021339,2]
[380519249,1755799854353,-480.0,0.00021369,2]
[380519250,1755799854363,-499.19,0.00021369,2]
[380519251,1755799854372,-623.44,0.00021369,2]
[380519252,1755799854382,-1833.01,0.00021369,2]
[380519253,1755799854392,-480.0,0.00021369,2]
[380519254,1755799854406,-480.0,0.00021369,2]
[380519255,1755799854415,-480.0,0.00021369,2]
[380519256,1755799854425,-7045.35565916,0.00021402,2]
[380519257,1755799854435,-4173.05029345,0.00021413,2]
[380519258,1755799854446,-273.55965815,0.00021439,2]
[380519259,1755799854455,-480.0,0.00021439,2]
[380519260,1755799854464,-399.83566139,0.00021439,2]
[380519261,1755799854474,-480.0,0.00021439,2]
[380519262,1755799854484,-2416.05,0.0002144,2]
[380519263,1755799854493,-975.31,0.0002144,2]
[380519264,1755799854503,-480.0,0.0002144,2]
[380519265,1755799854512,-1231.92,0.0002144,2]
[380519266,1755799854521,-806.16,0.0002144,2]
[380519267,1755799854531,-1818.22,0.0002144,2]
[380519268,1755799854541,-480.0,0.0002144,2]
[380519269,1755799854550,-2113.4,0.0002144,2]
[380519270,1755799854559,-168.0,0.00021465,2]
[380519271,1755799854569,-523.58962998,0.00021477,2]
[380519272,1755799854579,-3542.48,0.00021492,2]
[380519273,1755799854588,-753.08,0.00021492,2]
[380519274,1755799854598,-2521.08,0.00021492,2]
[380519275,1755799854607,-489.19,0.00021492,2]
[380519276,1755799854617,-2056.52,0.00021492,2]
[380519277,1755799854626,-2811.26,0.00021492,2]
[380519278,1755799854636,-480.0,0.00021492,2]
[380519279,1755799854645,-1523.71,0.00021492,2]
[380519280,1755799854655,-527.09,0.00021492,2]
[380519281,1755799854663,-503.54797301,0.00021492,2]
[380519282,1755799854673,-527.55,0.00021492,2]
[380519283,1755799854682,-688.66,0.00021492,2]
[380519284,1755799854691,-896.47,0.00021492,2]
[380519285,1755799854700,-480.0,0.00021502,2]
[380519286,1755799854710,-480.0,0.00021502,2]
[380519287,1755799854719,-480.0,0.00021502,2]
[380519288,1755799854728,-607.32,0.00021502,2]
[380519289,1755799854737,-1036.55,0.00021502,2]
[380519290,1755799854747,-592.84,0.00021502,2]
[380519291,1755799854756,-480.0,0.00021502,2]
[380519292,1755799854766,-1808.6,0.00021502,2]
[380519293,1755799854775,-480.0,0.00021502,2]
[380519294,1755799854785,-694.37,0.00021502,2]
[380519295,1755799854794,-1030.35,0.00021502,2]
[380519296,1755799854803,-480.0,0.00021502,2]
[380519297,1755799854812,-480.0,0.00021502,2]
[380519298,1755799854822,-548.87,0.00021502,2]
[380519299,1755799854831,-785.19,0.00021502,2]
[380519300,1755799854840,-595.06,0.00021502,2]
[380519301,1755799854849,-480.0,0.00021502,2]
[380519302,1755799854859,-480.0,0.00021502,2]
[380519303,1755799854868,-480.0,0.00021502,2]
[380519304,1755799854878,-480.0,0.00021502,2]
[380519305,1755799854887,-531.25,0.00021502,2]
[380519306,1755799854897,-480.0,0.00021502,2]
[380519307,1755799854906,-834.13,0.00021502,2]
[380519308,1755799854916,-480.0,0.00021502,2]
[380519309,1755799854926,-553.95,0.00021502,2]
[380519310,1755799854936,-158.49,0.00021502,2]
[380519311,1755799854946,-1963.81,0.00021503,2]
[380519312,1755799854955,-1091.59,0.00021503,2]
[380519313,1755799854964,-480.0,0.00021503,2]
[380519314,1755799854974,-480.0,0.00021503,2]
[380519315,1755799854983,-6417.89,0.00021503,2]
[380519316,1755799854992,-718.87,0.00021503,2]
[380519317,1755799855002,-1231.56,0.00021503,2]
[380519318,1755799855012,-6003.79,0.00021503,2]
[380519319,1755799855021,-1000.0,0.00021503,2]
[380519320,1755799855031,-151.0,0.0002156,2]
[380519321,1755799855040,-19897.22545671,0.0002156,2]
[380519322,1755799855050,-2500.0,0.00021564,2]
[380519323,1755799855059,-2500.0,0.00021564,2]
[380519324,1755799855069,-2577.04595886,0.00021564,2]
[380519325,1755799855078,-2500.0,0.00021564,2]
[380519326,1755799855088,-480.0,0.00021602,2]
[380519327,1755799855098,-480.0,0.00021602,2]
[380519328,1755799855107,-480.0,0.00021602,2]
[380519329,1755799855117,-920.74,0.00021602,2]
[380519330,1755799855127,-963.04,0.00021602,2]
[380519331,1755799855136,-480.0,0.00021602,2]
[380519332,1755799855146,-480.0,0.00021602,2]
[380519333,1755799855155,-480.0,0.00021602,2]
[380519334,1755799855165,-480.0,0.00021602,2]
[380519335,1755799855175,-559.19,0.00021602,2]
[380519336,1755799855184,-480.0,0.00021602,2]
[380519337,1755799855193,-992.45,0.00021602,2]
[380519338,1755799855203,-480.0,0.00021602,2]
[380519339,1755799855213,-480.0,0.00021602,2]
[380519340,1755799855222,-524.86,0.00021602,2]
[380519341,1755799855232,-497.6,0.00021602,2]
[380519342,1755799855245,-480.0,0.00021602,2]
[380519343,1755799855267,-625.39,0.00021602,2]
[380519344,1755799855276,-151.0,0.00021603,2]
[380519345,1755799855286,-152.927246,0.00021603,2]
[380519346,1755799855295,-151.0,0.00021603,2]
[380519347,1755799855304,-495.48,0.00021604,2]
[380519348,1755799855313,-480.0,0.00021604,2]
[380519349,1755799855322,-480.0,0.00021604,2]
[380519350,1755799855331,-480.0,0.00021604,2]
[380519351,1755799855341,-615.13,0.00021604,2]
[380519352,1755799855351,-480.0,0.00021604,2]
[380519353,1755799855360,-480.0,0.00021604,2]
[380519354,1755799855369,-480.0,0.00021604,2]
[380519355,1755799855378,-497.26,0.00021604,2]
[380519356,1755799855387,-480.0,0.00021604,2]
[380519357,1755799855399,-382.44365007,0.00021613,2]
[380519358,1755799855410,-480.0,0.00021613,2]
[380519359,1755799855419,-480.0,0.00021613,2]
[380519360,1755799855428,-151.0,0.00021613,2]
[380519361,1755799855438,-151.0,0.00021613,2]
[380519362,1755799855448,-151.0,0.00021613,2]
[380519363,1755799855457,-288.165664,0.00021613,2]
[380519364,1755799855467,-480.0,0.00021613,2]
[380519365,1755799855477,-480.0,0.00021613,2]
[380519366,1755799855487,-480.0,0.00021613,2]
[380519367,1755799855496,-1042.81,0.00021613,2]
[380519368,1755799855506,-480.0,0.00021613,2]
[380519369,1755799855515,-480.0,0.00021613,2]
[380519370,1755799855525,-480.0,0.00021613,2]
[380519371,1755799855535,-499.87,0.00021613,2]
[380519372,1755799855544,-1500.0,0.00021616,2]
[380519373,1755799855554,-1500.0,0.00021616,2]
[380519374,1755799855563,-2000.0,0.00021616,2]
[380519375,1755799855573,-1500.0,0.00021616,2]
[380519376,1755799855582,-480.0,0.00021643,2]
[380519377,1755799855591,-499.19,0.00021643,2]
[380519378,1755799855759,-623.44,0.00021643,2]
[380519379,1755799855769,-1833.01,0.00021643,2]
[380519380,1755799855778,-480.0,0.00021643,2]
[380519381,1755799855787,-480.0,0.00021643,2]
[380519382,1755799855797,-254.05845371,0.00021643,2]
[380519383,1755799855806,-196.0,0.00021645,2]
[380519384,1755799855816,-360.0,0.00021654,2]
[380519385,1755799855826,-168.0,0.0002171,2]
[380519386,1755799855835,-480.0,0.00021713,2]
[380519387,1755799855845,-480.0,0.00021713,2]
[380519388,1755799855854,-2416.05,0.00021714,2]
[380519389,1755799855863,-975.31,0.00021714,2]
[380519390,1755799855874,-480.0,0.00021714,2]
[380519391,1755799855883,-1231.92,0.00021714,2]
[380519392,1755799855894,-806.16,0.00021714,2]
[380519393,1755799855904,-1818.22,0.00021714,2]
[380519394,1755799855914,-480.0,0.00021714,2]
[380519395,1755799855925,-2113.4,0.00021714,2]
[380519396,1755799855935,-168.0,0.00021762,2]
[380519397,1755799855945,-3542.48,0.00021766,2]
[380519398,1755799855954,-753.08,0.00021766,2]
[380519399,1755799855964,-2521.08,0.00021766,2]
[380519400,1755799855974,-489.19,0.00021766,2]
[380519401,1755799855983,-2056.52,0.00021766,2]
[380519402,1755799855992,-2811.26,0.00021766,2]
[380519403,1755799856003,-480.0,0.00021766,2]
[380519404,1755799856012,-1523.71,0.00021766,2]
[380519405,1755799856022,-527.09,0.00021766,2]
[380519406,1755799856032,-527.55,0.00021766,2]
[380519407,1755799856041,-688.66,0.00021766,2]
[380519408,1755799856051,-896.47,0.00021766,2]
[380519409,1755799856060,-1500.0,0.00021768,2]
[380519410,1755799856070,-1500.0,0.00021768,2]
[380519411,1755799856080,-414.74784878,0.00021768,2]
[380519412,1755799856089,-1500.0,0.00021768,2]
[380519413,1755799856099,-1500.0,0.00021768,2]
[380519414,1755799856108,-1500.0,0.00021768,2]
[380519415,1755799856118,-1500.0,0.00021768,2]
[380519416,1755799856128,-1500.0,0.00021768,2]
[380519417,1755799856138,-9305.13314141,0.00021771,2]
[380519418,1755799856148,-480.0,0.00021776,2]
[380519419,1755799856162,-480.0,0.00021776,2]
[380519420,1755799856172,-447.05660191,0.00021776,2]
[380519421,1755799856182,-607.32,0.00021776,2]
[380519422,1755799856193,-1036.55,0.00021776,2]
[380519423,1755799856203,-592.84,0.00021776,2]
[380519424,1755799856212,-480.0,0.00021776,2]
[380519425,1755799856222,-1808.6,0.00021776,2]
[380519426,1755799856231,-480.0,0.00021776,2]
[380519427,1755799856241,-694.37,0.00021776,2]
[380519428,1755799856252,-1030.35,0.00021776,2]
[380519429,1755799856262,-480.0,0.00021776,2]
[380519430,1755799856270,-480.0,0.00021776,2]
[380519431,1755799856279,-548.87,0.00021776,2]
[380519432,1755799856289,-785.19,0.00021776,2]
[380519433,1755799856298,-595.06,0.00021776,2]
[380519434,1755799856307,-480.0,0.00021776,2]
[380519435,1755799856317,-480.0,0.00021776,2]
[380519436,1755799856326,-480.0,0.00021776,2]
[380519437,1755799856335,-480.0,0.00021776,2]
[380519438,1755799856344,-531.25,0.00021776,2]
[380519439,1755799856352,-480.0,0.00021776,2]
[380519440,1755799856362,-834.13,0.00021776,2]
[380519441,1755799856371,-480.0,0.00021776,2]
[380519442,1755799856380,-553.95,0.00021776,2]
[380519443,1755799856390,-1963.81,0.00021777,2]
[380519444,1755799856402,-1091.59,0.00021777,2]
[380519445,1755799856411,-480.0,0.00021777,2]
[380519446,1755799856421,-322.87555555,0.00021777,2]
[380519447,1755799856430,-6417.89,0.00021777,2]
[380519448,1755799856439,-718.87,0.00021777,2]
[380519449,1755799856450,-1231.56,0.00021777,2]
[380519450,1755799856459,-6003.79,0.00021777,2]
[380519451,1755799856469,-1085.16894155,0.00021857,2]
[380519452,1755799856479,-491.62736273,0.00021857,2]
[380519453,1755799856490,-480.0,0.00021876,2]
[380519454,1755799856499,-480.0,0.00021876,2]
[380519455,1755799856508,-480.0,0.00021876,2]
[380519456,1755799856518,-920.74,0.00021876,2]
[380519457,1755799856528,-963.04,0.00021876,2]
[380519458,1755799856537,-480.0,0.00021876,2]
[380519459,1755799856546,-480.0,0.00021876,2]
[380519460,1755799856555,-480.0,0.00021876,2]
[380519461,1755799856566,-480.0,0.00021876,2]
[380519462,1755799856575,-559.19,0.00021876,2]
[380519463,1755799856584,-480.0,0.00021876,2]
[380519464,1755799856594,-992.45,0.00021876,2]
[380519465,1755799856603,-480.0,0.00021876,2]
[380519466,1755799856612,-480.0,0.00021876,2]
[380519467,1755799856622,-524.86,0.00021876,2]
[380519468,1755799856631,-497.6,0.00021876,2]
[380519469,1755799856640,-480.0,0.00021876,2]
[380519470,1755799856649,-625.39,0.00021876,2]
[380519471,1755799856659,-495.48,0.00021878,2]
[380519472,1755799856668,-480.0,0.00021878,2]
[380519473,1755799856677,-480.0,0.00021878,2]
[380519474,1755799856686,-480.0,0.00021878,2]
[380519475,1755799856695,-615.13,0.00021878,2]
[380519476,1755799856704,-150.38,0.00021878,2]
[380519477,1755799856713,-480.0,0.00021878,2]
[380519478,1755799856723,-480.0,0.00021878,2]
[380519479,1755799856732,-497.26,0.00021878,2]
[380519480,1755799856742,-480.0,0.00021878,2]
[380519481,1755799856751,-480.0,0.00021887,2]
[380519482,1755799856760,-480.0,0.00021887,2]
[380519483,1755799856769,-480.0,0.00021887,2]
[380519484,1755799856778,-480.0,0.00021887,2]
[380519485,1755799856787,-480.0,0.00021887,2]
[380519486,1755799856797,-1042.81,0.00021887,2]
[380519487,1755799856807,-480.0,0.00021887,2]
[380519488,1755799856816,-480.0,0.00021887,2]
[380519489,1755799856825,-480.0,0.00021887,2]
[380519490,1755799856834,-499.87,0.00021887,2]
[380519491,1755799856844,-3000.0,0.000219,2]
[380519492,1755799856854,-3000.0,0.0002191,2]
[380519493,1755799856863,-500.0,0.00021917,2]
[380519494,1755799856872,-500.0,0.00021917,2]
[380519495,1755799856881,-500.0,0.00021917,2]
[380519496,1755799856891,-500.0,0.00021917,2]
[380519497,1755799856900,-500.0,0.00021917,2]
[380519498,1755799856909,-500.0,0.00021917,2]
[380519499,1755799856919,-500.0,0.00021917,2]
[380519500,1755799856928,-500.0,0.00021917,2]
[380519501,1755799856937,-500.0,0.00021917,2]
[380519502,1755799856946,-500.0,0.00021917,2]
[380519503,1755799856956,-553.29,0.00021917,2]
[380519504,1755799856965,-499.19,0.00021917,2]
[380519505,1755799856974,-623.44,0.00021917,2]
[380519506,1755799856984,-1833.01,0.00021917,2]
[380519507,1755799856993,-480.0,0.00021917,2]
[380519508,1755799857003,-480.0,0.00021917,2]
[380519509,1755799857012,-151.0,0.00021918,2]
[380519510,1755799857022,-151.0,0.00021918,2]
[380519511,1755799857031,-151.0,0.00021918,2]
[380519512,1755799857040,-151.0,0.00021918,2]
[380519513,1755799857050,-3000.0,0.0002192,2]
[380519514,1755799857060,-3000.0,0.0002193,2]
[380519515,1755799857070,-3000.0,0.0002194,2]
[380519516,1755799857079,-187.23706098,0.00021945,2]
[380519517,1755799857089,-3000.0,0.0002195,2]
[380519518,1755799857098,-196.0,0.00021958,2]
[380519519,1755799857108,-3000.0,0.0002196,2]
[380519520,1755799857118,-3000.0,0.0002197,2]
[380519521,1755799857128,-1000.0,0.00021973,2]
[380519522,1755799857138,-5999.999999,0.0002198,2]
[380519523,1755799857146,-480.0,0.00021987,3]
[380519524,1755799857156,-151.0,0.00021987,7]
[380519525,1755799857165,-151.0,0.00021987,7]
[380519526,1755799857174,-151.0,0.00021987,7]
[380519527,1755799857183,-151.0,0.00021987,7]
[380519528,1755799857193,-151.0,0.00021987,7]
[380519529,1755799857202,-151.0,0.00021987,7]
[380519530,1755799857211,-151.0,0.00021987,7]
[380519531,1755799857220,-480.0,0.00021987,3]
[380519532,1755799857230,-2416.05,0.00021988,3]
[380519533,1755799857240,-975.31,0.00021988,3]
[380519534,1755799857249,-480.0,0.00021988,3]
[380519535,1755799857258,-1231.92,0.00021988,3]
[380519536,1755799857268,-806.16,0.00021988,3]
[380519537,1755799857278,-1818.22,0.00021988,3]
[380519538,1755799857287,-480.0,0.00021988,3]
[380519539,1755799857297,-2113.4,0.00021988,3]
[380519540,1755799857306,-196.0,0.00021995,2]
[380519541,1755799857316,-6420.46,0.00022,7]
[380519542,1755799857326,-497.84,0.00022,7]
[380519543,1755799857339,-2810.12,0.00022,7]
[380519544,1755799857352,-50103.1,0.00022,2]
[380519545,1755799857366,-151.0,0.00022,7]
[380519546,1755799857379,-151.0,0.00022,7]
[380519547,1755799857389,-151.0,0.00022,7]
[380519548,1755799857402,-215.86710461,0.00022,3]
[380519549,1755799857415,-215.86710461,0.00022,7]
[380519550,1755799857426,-160.0,0.00022,3]
[380519551,1755799857439,-160.0,0.00022,7]
[380519552,1755799857452,-180.0,0.00022,2]
[380519553,1755799857465,-3542.48,0.0002204,3]
[380519554,1755799857479,-753.08,0.0002204,3]
[380519555,1755799857492,-1086.65577411,0.0002204,3]
[380519556,1755799890968,-169.32631122,0.00019177,2]
[380519557,1755799909675,617.86040041,0.00019077,2]
[380519558,1755799909697,10000.0,0.00019077,2]
[380519559,1755799909720,10000.0,0.00019077,2]
[380519560,1755799909742,10000.0,0.00019077,2]
[380519561,1755799909764,10000.0,0.00019077,2]
[380519562,1755799909785,10000.0,0.00019077,2]
[380519563,1755799909808,10000.0,0.00019077,2]
[380519564,1755799909829,10000.0,0.00019077,2]
[380519565,1755799909853,10000.0,0.00019077,2]
[380519566,1755799909874,10000.0,0.00019077,2]
[380519567,1755799909896,10000.0,0.00019077,2]
[380519568,1755799909918,10000.0,0.00019077,2]
[380519569,1755799909942,10000.0,0.00019077,2]
[380519570,1755799909962,10000.0,0.00019077,2]
[380519571,1755799909983,10000.0,0.00019077,2]
[380519572,1755799910005,10000.0,0.00019077,2]
[380519573,1755799910029,10000.0,0.00019077,2]
[380519574,1755799910052,10000.0,0.00019077,2]
[380519575,1755799910075,10000.0,0.00019077,2]
[380519576,1755799910111,10000.0,0.00019077,2]
[380519577,1755799910140,10000.0,0.00019077,2]
[380519578,1755799910164,10000.0,0.00019077,2]
[380519579,1755799910185,10000.0,0.00019077,2]
[380519580,1755799910205,10000.0,0.00019077,2]
[380519581,1755799910228,10000.0,0.00019077,2]
[380519582,1755799910251,10000.0,0.00019077,2]
[380519583,1755799910274,10000.0,0.00019077,2]
[380519584,1755799910295,10000.0,0.00019077,2]
[380519585,1755799910318,10000.0,0.00019077,2]
[380519586,1755799910339,10000.0,0.00019077,2]
[380519587,1755799910360,10000.0,0.00019077,2]
[380519588,1755799910381,10000.0,0.00019077,2]
[380519589,1755799910404,10000.0,0.00019077,2]
[380519590,1755799910433,10000.0,0.00019077,2]
[380519591,1755799910457,10000.0,0.00019077,2]
[380519592,1755799910478,10000.0,0.00019077,2]
[380519593,1755799910504,10000.0,0.00019077,2]
[380519594,1755799910528,9382.13959959,0.00019077,2]
[380519595,1755799921098,617.86040041,0.00019111,2]
[380519596,1755799921121,4382.13959959,0.00019111,2]
[380519597,1755799928970,5000.0,0.00019111,2]
[380519598,1755799937792,617.86040041,0.00019111,2]
[380519599,1755799937814,4382.13959959,0.00019111,2]
[380519600,1755799941733,233.39067577,0.00019077,2]
[380519601,1755799946178,5000.0,0.00019111,2]
[380519602,1755799954303,384.46972464,0.00019111,2]
[380519603,1755799954329,4615.53027536,0.00019111,2]
[380519604,1755799962109,5000.0,0.00019111,2]
[380519605,1755799966002,-201.04765892,0.00019177,2]
[380519606,1755799967737,-205.36770932,0.00019177,2]
[380519607,1755799970702,384.46972464,0.00019111,2]
[380519608,1755799970724,4615.53027536,0.00019111,2]
[380519609,1755799970920,-504.04032796,0.00019177,2]
[380519610,1755799973044,-220.0,0.00019177,2]
[380519611,1755799974485,-69.5443038,0.00019177,2]
[380519612,1755799974508,-93.76113869,0.00019177,2]
[380519613,1755799978680,5000.0,0.00019111,2]
[380519614,1755799986844,384.46972464,0.00019111,2]